{"text_format":"1","workbook":"xlsx","n_sheets":9,"sheets":["What is a Cash flow","Completing this document","Current Rates","STAFF RATES","Staff Salaries","Workings to Cash flow","CASH FLOW YR 1","CASH FLOW YR 2","CASH FLOW YR 3"],"not_rendered":{"charts":0,"images":0,"macros":1,"external_links":1,"defined_names":2,"comments":0,"pivot_tables":0},"unopened":[],"bounds":{"document_bytes":16777216,"sheet_cells":100000,"rows_first":2000,"rows_last":500,"rows_between":2000,"halvings":0,"cell_chars":16384,"cell_head_chars":4096},"cells_cut":0,"cells_raw":0,"read":"whole","date_system":"1900"}

{"sheet":"What is a Cash flow","index":0,"n_rows":6,"n_cols":1,"rows_kept":6,"cut":false,"hidden":false,"merged":[[9,3,9,9]]}
["What is a cash flow forecast?"]
["This is the process of estimating the flow of cash in and out of your business over a specific period of time"]
["Why is it helpful?"]
["It is important to know how much cash you will have in the business at any one time. A cash flow spreadsheet allows you to enter all your income (money that you receive) and expenditure (money that you pay out) for a 12 month period (or financial year). The result of this (income minus expenditure) will indicate whether your business will either break even (you made enough just to cover your expenditure), make a profit/surplus (your income is more than your expenditure) or a loss/deficit (your income is less than your expenditure)."]
["A cash flow can also help to:"]
["•   plan ahead for the coming years– are any projects being planned now or in the future? \n•   be aware of where your business stands financially\n•   access additional funding\n•  allow you to anticipate short falls - the clear, completed document will help you identify peaks and drops (i.e. if parental fees drop, this may indicate a reduction in child attendance and vice versa) With this information you can then take the steps needed to rectify the situation before it becomes a serious problem. This may mean allocating additional resources to marketing your service etc and budgeting for this. \n\n\n"]

{"sheet":"Completing this document","index":1,"n_rows":22,"n_cols":1,"rows_kept":22,"cut":false,"hidden":false,"merged":[[2,3,2,9]]}
["Useful tips for using this cash flow template"]
[]
["If you are applying for ECC funding you will need to complete 3 years cashflow forecast"]
["The compulsary cells to complete are highlighted in blue, however all cells can be overwritten if appropriate"]
[]
["Once tab ‘STAFF RATES’ has been completed, it will pull through the figures into tab ‘Staff Salaries’. "]
["It will automatically calculate the staff costs for the year and give you a break down of this per month."]
["Once checked, and you feel that this is correct to the best of your knowledge, you can move on to tab  'Workings to Cash flow'"]
["The information above will automatically be pulled into the ‘wages and salaries’ section and will also estimate holiday cover and staff training costs."]
["This method works if you pay your staff the same amount each month.  If the amount your staff are paid varies each month based on the number of hours worked, you will need to overwrite the formula on the tab 'Cash flow’ with your actual numbers for each month. "]
["NB:  Where figures are automatically entered that are not appropriate to your business you can overwrite the formula "]
["Select the appropriate cell(s), the cell you would like to alter should now have a black border around it. Now enter the figure that is realistic to your business. "]
["Complete the rest of the ‘Cash flow’ as normal. Refer to tips"]
["To complete your cash flow, you must enter your opening balance. If this is not entered your cash flow will be deemed as incomplete"]
[]
["If you would like advice or need guidance with completing your cash flow forecast or additionally need advice, guidance and support for any other business need, please email"]
[]
["Early Years and Childcare Business Management Consultancy Team:"]
["Rosemary Newall - Mid Quadrant - Rosemary.newell@essex.gov.uk"]
["Caroline Brown - South Quadrant - Caroline.brown@essex.gov.uk"]
["Alan Haylock - North Quadrant - Alan.haylock@essex.gov.uk "]
["Carmen Saunders - West Quadrant - Carmen.saunders@essex.gov.uk"]

{"sheet":"Current Rates","index":2,"n_rows":18,"n_cols":3,"rows_kept":18,"cut":false,"hidden":false,"merged":[]}
["Information needed prior to completing cashflow","Rates from April 2025"]
[]
["Please check relevant PAYE and NIC rates",null,"Check details on www.gov.uk"]
[]
["Please check National Minimum Wage",null,"Check details on www.gov.uk"]
[]
["Refer to pension regulator for relevant pension information",null,"https://www.thepensionsregulator.gov.uk/"]
[]
["For wraparound please check school holiday term dates",null,"With relevant school"]
[]
["FEEE Rates for each age category "]
["Please ensure parents/carers meet eligibility criteria"]
["FEEE1W",10.92,"Refer to your provider handbook for current rates"]
["FEEE2",8.16,"Refer to your provider handbook for current rates"]
["FEEE2W",7.96,"Refer to your provider handbook for current rates"]
["FEEE 3 - 4",5.54,"Refer to your provider handbook for current rates"]
[]
["Please reflect correctly the income by month. ",null,"Childminders, CMA and Day Nurseries will move to 12 monthly payments."]

{"sheet":"STAFF RATES","index":3,"n_rows":23,"n_cols":14,"rows_kept":23,"cut":false,"hidden":false,"merged":[[6,1,6,4],[2,1,2,8],[2,9,2,12],[4,1,4,8]]}
[]
[]
[null,"Setting Name: ",null,null,null,null,null,null,null,"Date Form Completed"]
[]
[null,"Staff Salary Rates "]
[null,null,null,null,null,null,null,null,"Please insert Pension Rate"]
[null,"Please complete all the white boxes below for each position that you have ",null,null,null,null,null,null,"Pension Rate",0]
[]
[null,"Staff Roles                    The headings below can be amended","Hourly Rate","No hours Per Week","No weeks Per Year","Annual  salary","National Insurance","Pension YES / NO","Pension","Staff Costs per Person",null,"No of staff",null,"Total Staff Costs"]
[]
[null,"Manager or Overtype",null,null,null,{"$f":"C11*D11*E11","v":0},{"$f":"IF(F11>9100,(F11-9100)*0.138,0)","v":0},null,{"$f":"IF(H11=\"yes\",F11*$J$7,0)","v":0},{"$f":"F11+G11+I11","v":0},null,null,null,{"$f":"J11*L11","v":0}]
[]
[null,"Assistant Manager",null,null,null,{"$f":"C13*D13*E13","v":0},{"$f":"IF(F13>9100,(F13-9100)*0.138,0)","v":0},null,{"$f":"IF(H13=\"yes\",F13*$J$7,0)","v":0},{"$f":"F13+G13+I13","v":0},null,null,null,{"$f":"J13*L13","v":0}]
[]
[null,"Early Years Practitioner",null,null,null,{"$f":"C15*D15*E15","v":0},0,null,0,{"$f":"F15+G15+I15","v":0},null,null,null,{"$f":"J15*L15","v":0}]
[]
[null,"Early Years Practitioner",null,null,null,{"$f":"C17*D17*E17","v":0},0,null,0,{"$f":"F17+G17+I17","v":0},null,null,null,{"$f":"J17*L17","v":0}]
[]
[null,"Early Years Practitioner",null,null,null,{"$f":"C19*D19*E19","v":0},0,null,0,{"$f":"F19+G19+I19","v":0},null,null,null,{"$f":"J19*L19","v":0}]
[]
[null,"Wraparound Practitioner",null,null,null,{"$f":"C21*D21*E21","v":0},0,null,0,{"$f":"F21+G21+I21","v":0},null,null,null,{"$f":"J21*L21","v":0}]
[]
[null,"Wraparound Practitioner",null,null,null,{"$f":"C23*D23*E23","v":0},0,null,0,{"$f":"F23+G23+I23","v":0},null,null,null,{"$f":"J23*L23","v":0}]

{"sheet":"Staff Salaries","index":4,"n_rows":27,"n_cols":16,"rows_kept":27,"cut":false,"hidden":false,"merged":[[6,1,6,7],[6,8,6,12],[26,12,26,13],[2,1,2,8],[2,11,2,12],[2,13,2,15],[4,1,4,8]]}
[]
[]
[null,{"$f":"'STAFF RATES'!B3","v":"Setting Name: "},null,null,null,null,null,null,null,null,null,"Date Form Completed",null,{"$f":"'STAFF RATES'!N3","v":"00:00:00"}]
[]
[null,"Staff Salaries"]
[]
[null,"ALL OF THESE FIGURES ARE CARRIED FORWARD FROM THE STAFF RATES PAGE"]
[]
[null,null,"Month 1 - overtype","Month 2 - overtype","Month 3 - overtype","Month 4 - overtype","Month 5 - overtype","Month 6 - overtype","Month 7 - overtype","Month 8 - overtype","Month 9 - overtype","Month 10 - overtype","Month 11 - overtype","Month 12 - overtype",null,"Total Staff Costs"]
[]
[null,{"$f":"'[1] 2. Staff Rates Year 1'!C11","v":"Manager or Overtype"},{"$f":"'STAFF RATES'!$N$11/12","v":0},{"$f":"'STAFF RATES'!$N$11/12","v":0},{"$f":"'STAFF RATES'!$N$11/12","v":0},{"$f":"'STAFF RATES'!$N$11/12","v":0},{"$f":"'STAFF RATES'!$N$11/12","v":0},{"$f":"'STAFF RATES'!$N$11/12","v":0},{"$f":"'STAFF RATES'!$N$11/12","v":0},{"$f":"'STAFF RATES'!$N$11/12","v":0},{"$f":"'STAFF RATES'!$N$11/12","v":0},{"$f":"'STAFF RATES'!$N$11/12","v":0},{"$f":"'STAFF RATES'!$N$11/12","v":0},{"$f":"'STAFF RATES'!$N$11/12","v":0},null,{"$f":"SUM(C11:O11)","v":0}]
[]
[null,{"$f":"'STAFF RATES'!B13","v":"Assistant Manager"},{"$f":"'STAFF RATES'!$N$13/12","v":0},{"$f":"'STAFF RATES'!$N$13/12","v":0},{"$f":"'STAFF RATES'!$N$13/12","v":0},{"$f":"'STAFF RATES'!$N$13/12","v":0},{"$f":"'STAFF RATES'!$N$13/12","v":0},{"$f":"'STAFF RATES'!$N$13/12","v":0},{"$f":"'STAFF RATES'!$N$13/12","v":0},{"$f":"'STAFF RATES'!$N$13/12","v":0},{"$f":"'STAFF RATES'!$N$13/12","v":0},{"$f":"'STAFF RATES'!$N$13/12","v":0},{"$f":"'STAFF RATES'!$N$13/12","v":0},{"$f":"'STAFF RATES'!$N$13/12","v":0},null,{"$f":"SUM(C13:O13)","v":0}]
[]
[null,{"$f":"'STAFF RATES'!B15","v":"Early Years Practitioner"},{"$f":"'STAFF RATES'!$N$15/12","v":0},{"$f":"'STAFF RATES'!$N$15/12","v":0},{"$f":"'STAFF RATES'!$N$15/12","v":0},{"$f":"'STAFF RATES'!$N$15/12","v":0},{"$f":"'STAFF RATES'!$N$15/12","v":0},{"$f":"'STAFF RATES'!$N$15/12","v":0},{"$f":"'STAFF RATES'!$N$15/12","v":0},{"$f":"'STAFF RATES'!$N$15/12","v":0},{"$f":"'STAFF RATES'!$N$15/12","v":0},{"$f":"'STAFF RATES'!$N$15/12","v":0},{"$f":"'STAFF RATES'!$N$15/12","v":0},{"$f":"'STAFF RATES'!$N$15/12","v":0},null,{"$f":"SUM(C15:O15)","v":0}]
[]
[null,{"$f":"'STAFF RATES'!B17","v":"Early Years Practitioner"},{"$f":"'STAFF RATES'!$N$17/12","v":0},{"$f":"'STAFF RATES'!$N$17/12","v":0},{"$f":"'STAFF RATES'!$N$17/12","v":0},{"$f":"'STAFF RATES'!$N$17/12","v":0},{"$f":"'STAFF RATES'!$N$17/12","v":0},{"$f":"'STAFF RATES'!$N$17/12","v":0},{"$f":"'STAFF RATES'!$N$17/12","v":0},{"$f":"'STAFF RATES'!$N$17/12","v":0},{"$f":"'STAFF RATES'!$N$17/12","v":0},{"$f":"'STAFF RATES'!$N$17/12","v":0},{"$f":"'STAFF RATES'!$N$17/12","v":0},{"$f":"'STAFF RATES'!$N$17/12","v":0},null,{"$f":"SUM(C17:O17)","v":0}]
[]
[null,{"$f":"'STAFF RATES'!B19","v":"Early Years Practitioner"},{"$f":"'STAFF RATES'!$N$19/12","v":0},{"$f":"'STAFF RATES'!$N$19/12","v":0},{"$f":"'STAFF RATES'!$N$19/12","v":0},{"$f":"'STAFF RATES'!$N$19/12","v":0},{"$f":"'STAFF RATES'!$N$19/12","v":0},{"$f":"'STAFF RATES'!$N$19/12","v":0},{"$f":"'STAFF RATES'!$N$19/12","v":0},{"$f":"'STAFF RATES'!$N$19/12","v":0},{"$f":"'STAFF RATES'!$N$19/12","v":0},{"$f":"'STAFF RATES'!$N$19/12","v":0},{"$f":"'STAFF RATES'!$N$19/12","v":0},{"$f":"'STAFF RATES'!$N$19/12","v":0},null,{"$f":"SUM(C19:O19)","v":0}]
[]
[null,{"$f":"'STAFF RATES'!B21","v":"Wraparound Practitioner"},{"$f":"'STAFF RATES'!$N$21/12","v":0},{"$f":"'STAFF RATES'!$N$21/12","v":0},{"$f":"'STAFF RATES'!$N$21/12","v":0},{"$f":"'STAFF RATES'!$N$21/12","v":0},{"$f":"'STAFF RATES'!$N$21/12","v":0},{"$f":"'STAFF RATES'!$N$21/12","v":0},{"$f":"'STAFF RATES'!$N$21/12","v":0},{"$f":"'STAFF RATES'!$N$21/12","v":0},{"$f":"'STAFF RATES'!$N$21/12","v":0},{"$f":"'STAFF RATES'!$N$21/12","v":0},{"$f":"'STAFF RATES'!$N$21/12","v":0},{"$f":"'STAFF RATES'!$N$21/12","v":0},null,{"$f":"SUM(C21:O21)","v":0}]
[]
[null,{"$f":"'STAFF RATES'!B23","v":"Wraparound Practitioner"},{"$f":"'STAFF RATES'!$N$23/12","v":0},{"$f":"'STAFF RATES'!$N$23/12","v":0},{"$f":"'STAFF RATES'!$N$23/12","v":0},{"$f":"'STAFF RATES'!$N$23/12","v":0},{"$f":"'STAFF RATES'!$N$23/12","v":0},{"$f":"'STAFF RATES'!$N$23/12","v":0},{"$f":"'STAFF RATES'!$N$23/12","v":0},{"$f":"'STAFF RATES'!$N$23/12","v":0},{"$f":"'STAFF RATES'!$N$23/12","v":0},{"$f":"'STAFF RATES'!$N$23/12","v":0},{"$f":"'STAFF RATES'!$N$23/12","v":0},{"$f":"'STAFF RATES'!$N$23/12","v":0},null,{"$f":"SUM(C23:O23)","v":0}]
[]
[null,"TOTAL PER MONTH",{"$f":"SUM(C11:C24)","v":0},0,0,0,0,0,0,0,0,0,0,0,0,0]
[]
[null,null,null,null,null,null,null,null,null,null,null,null,"Total staff cost                        (Fully Staffed Year 1)",null,null,{"$f":"P25","v":0}]

{"sheet":"Workings to Cash flow","index":5,"n_rows":34,"n_cols":6,"rows_kept":34,"cut":false,"hidden":false,"merged":[]}
[null,"Key considerations prior to calculating your income - WORKINGS ONLY"]
[null,"This sheet does not calculate through to the cashflow but you can use it to think about different income streams"]
[null,"Number of registered children"]
[]
[null,"Think about your breakeven point"]
[null,"Weekly Cost = Total annual expenditure divided by Number of weeks open"]
[null,"How many hours you have per week = Hours per day x Days open per week x Registered places"]
[null,"Charge per hour to breakeven = weekly expenditure divided by realistic hours occupied "]
[null,"Number of hours that need to be sold divided by hours per day divided by days open = number of children needed to breakeven"]
[]
[null,"Additional Charges"]
[null,"If you will be charging additional charges please ensure they are relevant to the needs of the child."]
[]
[null,"Income Breakdown for Early Years"]
[null,null,"Rates per hour","Number of children per hour","Number of Hours per week","Fees per week"]
[null,"Private Fees",null,null,null,{"$f":"C16*D16*E16","v":0}]
[null,"FEEE1W",null,null,null,{"$f":"C17*D17*E17","v":0}]
[null,"FEEE2",null,null,null,0]
[null,"FEEE2W",null,null,null,0]
[null,"FEEE3-4",null,null,null,0]
[null,"*SENIF",null,null,null,0]
[null,"*EYPP",null,null,null,0]
[null,"*DAF",null,null,null,0]
[null,"Total",null,null,null,{"$f":"SUM(F16:F23)","v":0}]
[null,"*If applicable"]
[null,"Income Breakdown for Wraparound if applicable "]
[null,"Varying Rates","Hourly Rate","Number of Children per hour","Number of Hours per week","Fees per week"]
[null,"Breakfast Club",null,null,null,{"$f":"C28*D28*E28","v":0}]
[null,"One Rate 3pm - 6pm",null,null,null,{"$f":"C29*D29*E29","v":0}]
[null,"Rate for 3pm - 4pm",null,null,null,0]
[null,"Rate for 4pm - 5pm",null,null,null,0]
[null,"Rate for 5pm - 6pm",null,null,null,0]
[null,null,null,null,null,0]
[null,"Total",null,null,null,{"$f":"SUM(F28:F33)","v":0}]

{"sheet":"CASH FLOW YR 1","index":6,"n_rows":104,"n_cols":19,"rows_kept":104,"cut":false,"hidden":false,"merged":[[83,16,83,17],[83,1,83,5],[83,9,83,15],[83,7,83,8],[2,7,2,8],[12,7,12,15],[8,1,9,1],[2,13,4,18],[6,3,6,17],[4,3,4,10],[2,3,2,5],[4,1,6,1]]}
[" "]
[]
[null,null,null,"Date completed",null,null,null,null,null,null,null,null,null,"Cashflow Forecast"]
[]
[null,{"$f":"IF(B9=0, \"Please select the year using the drop down menu below\", \"\")","v":""},null,{"$f":"'Staff Salaries'!B3","v":"Setting Name: "}]
[]
[null,null,null,"Only complete the blue boxes below which apply to your setting.  When completing please try to be as accurate as possible about the timings of your income and expenditure. "]
[]
[null,"Year 1",null,"Month 1","Month 2","Month 3",null,"Month 4","Month 5","Month 6",null,"Month 7","Month 8","Month 9",null,"Month 10","Month 11","Month 12","Totals"]
[]
[]
[]
[null,"Income",null,null,null,null,null,"PLEASE ENTER FIGURES IN BLUE BOXES ONLY "]
[]
[null,"FEEE1W ",null,null,null,null,null,null,null,null,null,null,null,null,null,null,null,null,{"$f":"SUM(D15:R15)","v":0}]
[null,"FEEE2",null,null,null,null,null,null,null,null,null,null,null,null,null,null,null,null,{"$f":"SUM(D16:R16)","v":0}]
[null,"FEEE2W",null,null,null,null,null,null,null,null,null,null,null,null,null,null,null,null,0]
[null,"FEEE 3 - 4",null,null,null,null,null,null,null,null,null,null,null,null,null,null,null,null,0]
[null,"*SENIF",null,null,null,null,null,null,null,null,null,null,null,null,null,null,null,null,0]
[null,"*EYPP",null,null,null,null,null,null,null,null,null,null,null,null,null,null,null,null,0]
[null,"*DAF",null,null,null,null,null,null,null,null,null,null,null,null,null,null,null,null,0]
[null,"Capital ",null,null,null,null,null,null,null,null,null,null,null,null,null,null,null,null,0]
[null,"Fees From Parents",null,null,null,null,null,null,null,null,null,null,null,null,null,null,null,null,{"$f":"SUM(D23:R23)","v":0}]
[null,"Wraparound Fees",null,null,null,null,null,null,null,null,null,null,null,null,null,null,null,null,{"$f":"SUM(D24:R24)","v":0}]
[null,"Local Authority Grants",null,null,null,null,null,null,null,null,null,null,null,null,null,null,null,null,{"$f":"SUM(D25:R25)","v":0}]
[null,"Other - please detail",null,null,null,null,null,null,null,null,null,null,null,null,null,null,null,null,0]
[null,"Other - please detail",null,null,null,null,null,null,null,null,null,null,null,null,null,null,null,null,0]
[null,"Other - please detail",null,null,null,null,null,null,null,null,null,null,null,null,null,null,null,null,0]
[null,"Other - please detail",null,null,null,null,null,null,null,null,null,null,null,null,null,null,null,null,0]
[]
[null,"TOTAL INCOME ",null,{"$f":"SUM(D15:D29)","v":0},{"$f":"SUM(E15:E29)","v":0},{"$f":"SUM(F15:F29)","v":0},null,{"$f":"SUM(H15:H29)","v":0},{"$f":"SUM(I15:I29)","v":0},{"$f":"SUM(J15:J29)","v":0},null,{"$f":"SUM(L15:L29)","v":0},{"$f":"SUM(M15:M29)","v":0},{"$f":"SUM(N15:N29)","v":0},null,{"$f":"SUM(P15:P29)","v":0},{"$f":"SUM(Q15:Q29)","v":0},{"$f":"SUM(R15:R29)","v":0},{"$f":"SUM(S15:S29)","v":0}]
[]
[null,"Expenditure"]
[]
[null,"Wages & Salaries",null,{"$f":"'Staff Salaries'!C25","v":0},{"$f":"'Staff Salaries'!D25","v":0},{"$f":"'Staff Salaries'!E25","v":0},null,{"$f":"'Staff Salaries'!F25","v":0},{"$f":"'Staff Salaries'!G25","v":0},{"$f":"'Staff Salaries'!H25","v":0},null,{"$f":"'Staff Salaries'!I25","v":0},{"$f":"'Staff Salaries'!J25","v":0},{"$f":"'Staff Salaries'!K25","v":0},null,{"$f":"'Staff Salaries'!L25","v":0},{"$f":"'Staff Salaries'!M25","v":0},{"$f":"'Staff Salaries'!N25","v":0},{"$f":"SUM(D35:R35)","v":0}]
[null,"Holiday Cover @ 5%",null,{"$f":"D35/100*5","v":0},{"$f":"E35/100*5","v":0},{"$f":"F35/100*5","v":0},null,{"$f":"H35/100*5","v":0},{"$f":"I35/100*5","v":0},{"$f":"J35/100*5","v":0},null,{"$f":"L35/100*5","v":0},{"$f":"M35/100*5","v":0},{"$f":"N35/100*5","v":0},null,{"$f":"P35/100*5","v":0},{"$f":"Q35/100*5","v":0},{"$f":"R35/100*5","v":0},0]
[null,"Staff  Training @ 1.5%",null,{"$f":"D35/100*1.5","v":0},{"$f":"E35/100*1.5","v":0},{"$f":"F35/100*1.5","v":0},null,{"$f":"H35/100*1.5","v":0},{"$f":"I35/100*1.5","v":0},{"$f":"J35/100*1.5","v":0},null,{"$f":"L35/100*1.5","v":0},{"$f":"M35/100*1.5","v":0},{"$f":"N35/100*1.5","v":0},null,{"$f":"P35/100*1.5","v":0},{"$f":"Q35/100*1.5","v":0},{"$f":"R35/100*1.5","v":0},0]
[null,"Other ",null,null,null,null,null,null,null,null,null,null,null,null,null,null,null,null,0]
[null,"Total Staff Costs",null,{"$f":"SUM(D35:D38)","v":0},{"$f":"SUM(E35:E38)","v":0},{"$f":"SUM(F35:F38)","v":0},null,{"$f":"SUM(H35:H38)","v":0},{"$f":"SUM(I35:I38)","v":0},{"$f":"SUM(J35:J38)","v":0},null,{"$f":"SUM(L35:L38)","v":0},{"$f":"SUM(M35:M38)","v":0},{"$f":"SUM(N35:N38)","v":0},null,{"$f":"SUM(P35:P38)","v":0},{"$f":"SUM(Q35:Q38)","v":0},{"$f":"SUM(R35:R38)","v":0},{"$f":"SUM(S35:S38)","v":0}]
[null,"Rent",null,null,null,null,null,null,null,null,null,null,null,null,null,null,null,null,{"$f":"SUM(D40:R40)","v":0}]
[null,"Maintenance",null,null,null,null,null,null,null,null,null,null,null,null,null,null,null,null,0]
[null,"Electricity",null,null,null,null,null,null,null,null,null,null,null,null,null,null,null,null,0]
[null,"Gas",null,null,null,null,null,null,null,null,null,null,null,null,null,null,null,null,0]
[null,"Business Rates",null,null,null,null,null,null,null,null,null,null,null,null,null,null,null,null,0]
[null,"Water",null,null,null,null,null,null,null,null,null,null,null,null,null,null,null,null,0]
[null,"Cleaning",null,null,null,null,null,null,null,null,null,null,null,null,null,null,null,null,0]
[null,"Other - please detail",null,null,null,null,null,null,null,null,null,null,null,null,null,null,null,null,0]
[null,"Other - please detail",null,null,null,null,null,null,null,null,null,null,null,null,null,null,null,null,0]
[null,"Total Premises",null,{"$f":"SUM(D40:D48)","v":0},{"$f":"SUM(E40:E48)","v":0},{"$f":"SUM(F40:F48)","v":0},null,{"$f":"SUM(H40:H48)","v":0},{"$f":"SUM(I40:I48)","v":0},{"$f":"SUM(J40:J48)","v":0},null,{"$f":"SUM(L40:L48)","v":0},{"$f":"SUM(M40:M48)","v":0},{"$f":"SUM(N40:N48)","v":0},null,{"$f":"SUM(P40:P48)","v":0},{"$f":"SUM(Q40:Q48)","v":0},{"$f":"SUM(R40:R48)","v":0},{"$f":"SUM(S40:S48)","v":0}]
[null,"Building Insurance",null,null,null,null,null,null,null,null,null,null,null,null,null,null,null,null,{"$f":"SUM(D50:R50)","v":0}]
[null,"Contents Insurance",null,null,null,null,null,null,null,null,null,null,null,null,null,null,null,null,{"$f":"SUM(D51:R51)","v":0}]
[null,"Employment Insurance",null,null,null,null,null,null,null,null,null,null,null,null,null,null,null,null,{"$f":"SUM(D52:R52)","v":0}]
[null,"Total Insurance",null,{"$f":"SUM(D50:D52)","v":0},{"$f":"SUM(E50:E52)","v":0},0,null,0,0,0,null,0,0,0,null,0,0,0,{"$f":"SUM(S50:S52)","v":0}]
[]
[null,"Administration Costs",null,null,null,null,null,null,null,null,null,null,null,null,null,null,null,null,{"$f":"SUM(D55:R55)","v":0}]
[null,"Membership Fees",null,null,null,null,null,null,null,null,null,null,null,null,null,null,null,null,0]
[null,"Bank Charges",null,null,null,null,null,null,null,null,null,null,null,null,null,null,null,null,0]
[null,"Professional Fees",null,null,null,null,null,null,null,null,null,null,null,null,null,null,null,null,0]
[null,"Subscriptions",null,null,null,null,null,null,null,null,null,null,null,null,null,null,null,null,0]
[null,"Other - please detail",null,null,null,null,null,null,null,null,null,null,null,null,null,null,null,null,0]
[null,"Other - please detail",null,null,null,null,null,null,null,null,null,null,null,null,null,null,null,null,0]
[null,"Total Administration",null,{"$f":"SUM(D55:D61)","v":0},{"$f":"SUM(E55:E61)","v":0},{"$f":"SUM(F55:F61)","v":0},null,{"$f":"SUM(H55:H61)","v":0},{"$f":"SUM(I55:I61)","v":0},{"$f":"SUM(J55:J61)","v":0},null,{"$f":"SUM(L55:L61)","v":0},{"$f":"SUM(M55:M61)","v":0},{"$f":"SUM(N55:N61)","v":0},null,{"$f":"SUM(P55:P61)","v":0},{"$f":"SUM(Q55:Q61)","v":0},{"$f":"SUM(R55:R61)","v":0},{"$f":"SUM(S55:S61)","v":0}]
[null,"Consumables",null,null,null,null,null,null,null,null,null,null,null,null,null,null,null,null,{"$f":"SUM(D63:R63)","v":0}]
[null,"Visits & Trips out ",null,null,null,null,null,null,null,null,null,null,null,null,null,null,null,null,0]
[null,"Catering",null,null,null,null,null,null,null,null,null,null,null,null,null,null,null,null,0]
[null,"Misc / Sundries",null,null,null,null,null,null,null,null,null,null,null,null,null,null,null,null,0]
[null,"Repairs & renewals",null,null,null,null,null,null,null,null,null,null,null,null,null,null,null,null,0]
[null,"Other - please detail",null,null,null,null,null,null,null,null,null,null,null,null,null,null,null,null,0]
[null,"Total Activity & Material Costs",null,{"$f":"SUM(D63:D68)","v":0},{"$f":"SUM(E63:E68)","v":0},0,null,0,0,0,null,0,0,0,null,0,0,0,{"$f":"SUM(S63:S68)","v":0}]
[null,"Advertising / Promotions",null,null,null,null,null,null,null,null,null,null,null,null,null,null,null,null,{"$f":"SUM(D70:R70)","v":0}]
[null,"Market Research",null,null,null,null,null,null,null,null,null,null,null,null,null,null,null,null,{"$f":"SUM(D71:R71)","v":0}]
[null,"Total Advertising",null,{"$f":"SUM(D70:D71)","v":0},{"$f":"SUM(E70:E71)","v":0},0,null,0,0,0,null,0,0,0,null,0,0,0,{"$f":"SUM(S70:S71)","v":0}]
[null,"Capital Expenditure",null,null,null,null,null,null,null,null,null,null,null,null,null,null,null,null,{"$f":"SUM(D73:R73)","v":0}]
[null,"Other - please detail",null,null,null,null,null,null,null,null,null,null,null,null,null,null,null,null,0]
[null,"Other - please detail",null,null,null,null,null,null,null,null,null,null,null,null,null,null,null,null,0]
[null,null,null,{"$f":"SUM(D73:D75)","v":0},{"$f":"SUM(E73:E75)","v":0},{"$f":"SUM(F73:F75)","v":0},null,{"$f":"SUM(H73:H75)","v":0},{"$f":"SUM(I73:I75)","v":0},{"$f":"SUM(J73:J75)","v":0},null,{"$f":"SUM(L73:L75)","v":0},{"$f":"SUM(M73:M75)","v":0},{"$f":"SUM(N73:N75)","v":0},null,{"$f":"SUM(P73:P75)","v":0},{"$f":"SUM(Q73:Q75)","v":0},{"$f":"SUM(R73:R75)","v":0},{"$f":"SUM(S73:S75)","v":0}]
[null,"TOTAL EXPENDITURE",null,{"$f":"D39+D49+D53+D62+D69+D72+D76","v":0},0,0,null,0,0,0,0,0,0,0,0,0,0,0,0]
[]
[null,"Opening balance",null,null,{"$f":"D82","v":0},{"$f":"E82","v":0},null,{"$f":"F82","v":0},0,0,null,{"$f":"J82","v":0},0,0,null,{"$f":"N82","v":0},0,0,{"$f":"R82","v":0}]
[null,"Total Income",null,{"$f":"D31","v":0},{"$f":"E31","v":0},{"$f":"F31","v":0},null,{"$f":"H31","v":0},{"$f":"I31","v":0},{"$f":"J31","v":0},null,{"$f":"L31","v":0},{"$f":"M31","v":0},{"$f":"N31","v":0},null,{"$f":"P31","v":0},{"$f":"Q31","v":0},{"$f":"R31","v":0},{"$f":"SUM(D80:R80)","v":0}]
[null,"Total Expenditure",null,{"$f":"D77","v":0},{"$f":"E77","v":0},0,null,0,0,0,null,0,0,0,null,0,0,0,{"$f":"SUM(D81:R81)","v":0}]
[null,"Closing balance",null,{"$f":"D79+D80-D81","v":0},0,0,null,0,0,0,null,0,0,0,null,0,0,{"$f":"R79+R80-R81","v":0}]
[]
[null,{"$f":"IF(D79=0,\"PLEASE ENTER OPENING BALANCE\",\"OPENING BALANCE OK\")","v":"PLEASE ENTER OPENING BALANCE"},null,null,null,null,null,{"$f":"IF(Q84=\"LOSS\",\"WARNING\",\"GOOD NEWS\")","v":"GOOD NEWS"},null,"The cashflow forecast is currently indicating that you will make a",null,null,null,null,null,null,{"$f":"IF(S84<0,\"LOSS\",IF(S84>0,\"PROFIT\",IF(S84=0,\"BREAK EVEN\")))","v":"BREAK EVEN"},{"$f":"IF(S81>S80,\"LOSS\",IF(S81<S80,\"PROFIT\",IF(S81=S80,\"BREAK EVEN\")))","v":"BREAK EVEN"},{"$f":"S80-S81","v":0}]
[]
[]
[]
[]
[]
[]
[]
[]
[]
[]
[null,"Year 1"]
[null,"Year 2"]
[null,"Year 3"]
[null,"Year 4"]
[null,"Year 5"]
[null,"Year 6"]
[null,"Year 7"]
[null,"Year 8"]
[null,"Year 9"]
[null,"Year 10"]

{"sheet":"CASH FLOW YR 2","index":7,"n_rows":104,"n_cols":19,"rows_kept":104,"cut":false,"hidden":false,"merged":[[83,16,83,17],[2,3,2,5],[2,7,2,8],[2,13,4,18],[4,1,6,1],[4,3,4,10],[6,3,6,17],[8,1,9,1],[12,7,12,15],[83,1,83,5],[83,7,83,8],[83,9,83,15]]}
[]
[]
[null,null,null,"Date completed",null,null,null,null,null,null,null,null,null,"Cashflow Forecast"]
[]
[null,{"$f":"IF(B9=0, \"Please select the year using the drop down menu below\", \"\")","v":""},null,{"$f":"'Staff Salaries'!B3","v":"Setting Name: "}]
[]
[null,null,null,"Only complete the blue boxes below which apply to your setting.  When completing please try to be as accurate as possible about the timings of your income and expenditure. "]
[]
[null,"Year 2",null,"Month 1","Month 2","Month 3",null,"Month 4","Month 5","Month 6",null,"Month 7","Month 8","Month 9",null,"Month 10","Month 11","Month 12","Totals"]
[]
[]
[]
[null,"Income",null,null,"Text can be changed",null,null,"PLEASE ENTER FIGURES IN BLUE BOXES ONLY "]
[]
[null,"FEEE1W",null,null,null,null,null,null,null,null,null,null,null,null,null,null,null,null,{"$f":"SUM(D15:R15)","v":0}]
[null,"FEEE2",null,null,null,null,null,null,null,null,null,null,null,null,null,null,null,null,0]
[null,"FEEE2W",null,null,null,null,null,null,null,null,null,null,null,null,null,null,null,null,0]
[null,"FEEE 3 - 4",null,null,null,null,null,null,null,null,null,null,null,null,null,null,null,null,0]
[null,"*SENIF",null,null,null,null,null,null,null,null,null,null,null,null,null,null,null,null,0]
[null,"*EYPP",null,null,null,null,null,null,null,null,null,null,null,null,null,null,null,null,0]
[null,"*DAF",null,null,null,null,null,null,null,null,null,null,null,null,null,null,null,null,0]
[null,"Capital ",null,null,null,null,null,null,null,null,null,null,null,null,null,null,null,null,0]
[null,"Fees From parents",null,null,null,null,null,null,null,null,null,null,null,null,null,null,null,null,0]
[null,"Wraparound Fees",null,null,null,null,null,null,null,null,null,null,null,null,null,null,null,null,0]
[null,"Local Authority Grants",null,null,null,null,null,null,null,null,null,null,null,null,null,null,null,null,0]
[null,"Other - please detail",null,null,null,null,null,null,null,null,null,null,null,null,null,null,null,null,0]
[null,"Other - please detail",null,null,null,null,null,null,null,null,null,null,null,null,null,null,null,null,0]
[null,"Other - please detail",null,null,null,null,null,null,null,null,null,null,null,null,null,null,null,null,0]
[null,"Other - please detail",null,null,null,null,null,null,null,null,null,null,null,null,null,null,null,null,{"$f":"SUM(D29:R29)","v":0}]
[]
[null,"TOTAL INCOME ",null,{"$f":"SUM(D15:D29)","v":0},{"$f":"SUM(E15:E29)","v":0},{"$f":"SUM(F15:F29)","v":0},null,{"$f":"SUM(H15:H29)","v":0},{"$f":"SUM(I15:I29)","v":0},{"$f":"SUM(J15:J29)","v":0},null,{"$f":"SUM(L15:L29)","v":0},{"$f":"SUM(M15:M29)","v":0},{"$f":"SUM(N15:N29)","v":0},null,{"$f":"SUM(P15:P29)","v":0},{"$f":"SUM(Q15:Q29)","v":0},{"$f":"SUM(R15:R29)","v":0},{"$f":"SUM(S15:S29)","v":0}]
[]
[null,"Expenditure"]
[]
[null,"Wages & Salaries",null,{"$f":"'Staff Salaries'!C25","v":0},{"$f":"'Staff Salaries'!D25","v":0},{"$f":"'Staff Salaries'!E25","v":0},null,{"$f":"'Staff Salaries'!F25","v":0},{"$f":"'Staff Salaries'!G25","v":0},{"$f":"'Staff Salaries'!H25","v":0},null,{"$f":"'Staff Salaries'!I25","v":0},{"$f":"'Staff Salaries'!J25","v":0},{"$f":"'Staff Salaries'!K25","v":0},null,{"$f":"'Staff Salaries'!L25","v":0},{"$f":"'Staff Salaries'!M25","v":0},{"$f":"'Staff Salaries'!N25","v":0},{"$f":"SUM(D35:R35)","v":0}]
[null,"Holiday Cover @ 5%",null,{"$f":"D35/100*5","v":0},{"$f":"E35/100*5","v":0},0,null,0,0,0,null,0,0,0,null,0,0,0,0]
[null,"Staff  Training @ 1.5%",null,{"$f":"D35/100*1.5","v":0},{"$f":"E35/100*1.5","v":0},{"$f":"F35/100*1.5","v":0},null,{"$f":"H35/100*1.5","v":0},{"$f":"I35/100*1.5","v":0},{"$f":"J35/100*1.5","v":0},null,{"$f":"L35/100*1.5","v":0},{"$f":"M35/100*1.5","v":0},{"$f":"N35/100*1.5","v":0},null,{"$f":"P35/100*1.5","v":0},{"$f":"Q35/100*1.5","v":0},{"$f":"R35/100*1.5","v":0},0]
[null,"Other - please detail",null,null,null,null,null,null,null,null,null,null,null,null,null,null,null,null,0]
[null,"Total Staff Costs",null,{"$f":"SUM(D35:D38)","v":0},{"$f":"SUM(E35:E38)","v":0},{"$f":"SUM(F35:F38)","v":0},null,{"$f":"SUM(H35:H38)","v":0},{"$f":"SUM(I35:I38)","v":0},{"$f":"SUM(J35:J38)","v":0},null,{"$f":"SUM(L35:L38)","v":0},{"$f":"SUM(M35:M38)","v":0},{"$f":"SUM(N35:N38)","v":0},null,{"$f":"SUM(P35:P38)","v":0},{"$f":"SUM(Q35:Q38)","v":0},{"$f":"SUM(R35:R38)","v":0},{"$f":"SUM(S35:S38)","v":0}]
[null,"Rent",null,null,null,null,null,null,null,null,null,null,null,null,null,null,null,null,{"$f":"SUM(D40:R40)","v":0}]
[null,"Maintenance",null,null,null,null,null,null,null,null,null,null,null,null,null,null,null,null,0]
[null,"Electricity",null,null,null,null,null,null,null,null,null,null,null,null,null,null,null,null,0]
[null,"Gas",null,null,null,null,null,null,null,null,null,null,null,null,null,null,null,null,0]
[null,"Business Rates",null,null,null,null,null,null,null,null,null,null,null,null,null,null,null,null,0]
[null,"Water",null,null,null,null,null,null,null,null,null,null,null,null,null,null,null,null,0]
[null,"Cleaning",null,null,null,null,null,null,null,null,null,null,null,null,null,null,null,null,0]
[null,"Other - please detail",null,null,null,null,null,null,null,null,null,null,null,null,null,null,null,null,0]
[null,"Other - please detail",null,null,null,null,null,null,null,null,null,null,null,null,null,null,null,null,0]
[null,"Total Premises",null,{"$f":"SUM(D40:D48)","v":0},{"$f":"SUM(E40:E48)","v":0},{"$f":"SUM(F40:F48)","v":0},null,{"$f":"SUM(H40:H48)","v":0},{"$f":"SUM(I40:I48)","v":0},{"$f":"SUM(J40:J48)","v":0},null,{"$f":"SUM(L40:L48)","v":0},{"$f":"SUM(M40:M48)","v":0},{"$f":"SUM(N40:N48)","v":0},null,{"$f":"SUM(P40:P48)","v":0},{"$f":"SUM(Q40:Q48)","v":0},{"$f":"SUM(R40:R48)","v":0},{"$f":"SUM(S40:S48)","v":0}]
[null,"Building Insurance",null,null,null,null,null,null,null,null,null,null,null,null,null,null,null,null,{"$f":"SUM(D50:R50)","v":0}]
[null,"Contents Insurance",null,null,null,null,null,null,null,null,null,null,null,null,null,null,null,null,{"$f":"SUM(D51:R51)","v":0}]
[null,"Employment Insurance",null,null,null,null,null,null,null,null,null,null,null,null,null,null,null,null,{"$f":"SUM(D52:R52)","v":0}]
[null,"Total Insurance",null,{"$f":"SUM(D50:D52)","v":0},{"$f":"SUM(E50:E52)","v":0},0,null,0,0,0,null,0,0,0,null,0,0,0,{"$f":"SUM(S50:S52)","v":0}]
[]
[null,"Administration Costs",null,null,null,null,null,null,null,null,null,null,null,null,null,null,null,null,{"$f":"SUM(D55:R55)","v":0}]
[null,"Membership Fees",null,null,null,null,null,null,null,null,null,null,null,null,null,null,null,null,0]
[null,"Bank Charges",null,null,null,null,null,null,null,null,null,null,null,null,null,null,null,null,0]
[null,"Professional Fees",null,null,null,null,null,null,null,null,null,null,null,null,null,null,null,null,0]
[null,"Subscriptions",null,null,null,null,null,null,null,null,null,null,null,null,null,null,null,null,0]
[null,"Other - please detail",null,null,null,null,null,null,null,null,null,null,null,null,null,null,null,null,0]
[null,"Other - please detail",null,null,null,null,null,null,null,null,null,null,null,null,null,null,null,null,0]
[null,"Total Administration",null,{"$f":"SUM(D55:D61)","v":0},{"$f":"SUM(E55:E61)","v":0},{"$f":"SUM(F55:F61)","v":0},null,{"$f":"SUM(H55:H61)","v":0},{"$f":"SUM(I55:I61)","v":0},{"$f":"SUM(J55:J61)","v":0},null,{"$f":"SUM(L55:L61)","v":0},{"$f":"SUM(M55:M61)","v":0},{"$f":"SUM(N55:N61)","v":0},null,{"$f":"SUM(P55:P61)","v":0},{"$f":"SUM(Q55:Q61)","v":0},{"$f":"SUM(R55:R61)","v":0},{"$f":"SUM(S55:S61)","v":0}]
[null,"Consumables",null,null,null,null,null,null,null,null,null,null,null,null,null,null,null,null,{"$f":"SUM(D63:R63)","v":0}]
[null,"Visits & Trips out ",null,null,null,null,null,null,null,null,null,null,null,null,null,null,null,null,0]
[null,"Catering",null,null,null,null,null,null,null,null,null,null,null,null,null,null,null,null,0]
[null,"Misc / Sundries",null,null,null,null,null,null,null,null,null,null,null,null,null,null,null,null,0]
[null,"Repairs & renewals",null,null,null,null,null,null,null,null,null,null,null,null,null,null,null,null,0]
[null,"Other - please detail",null,null,null,null,null,null,null,null,null,null,null,null,null,null,null,null,0]
[null,"Total Activity & Material Costs",null,{"$f":"SUM(D63:D68)","v":0},{"$f":"SUM(E63:E68)","v":0},0,null,0,0,0,null,0,0,0,null,0,0,0,{"$f":"SUM(S63:S68)","v":0}]
[null,"Advertising / Promotions",null,null,null,null,null,null,null,null,null,null,null,null,null,null,null,null,{"$f":"SUM(D70:R70)","v":0}]
[null,"Market Research",null,null,null,null,null,null,null,null,null,null,null,null,null,null,null,null,{"$f":"SUM(D71:R71)","v":0}]
[null,"Total Advertising",null,{"$f":"SUM(D70:D71)","v":0},{"$f":"SUM(E70:E71)","v":0},0,null,0,0,0,null,0,0,0,null,0,0,0,{"$f":"SUM(S70:S71)","v":0}]
[null,"Capital Expenditure",null,null,null,null,null,null,null,null,null,null,null,null,null,null,null,null,{"$f":"SUM(D73:R73)","v":0}]
[null,"Other - please detail",null,null,null,null,null,null,null,null,null,null,null,null,null,null,null,null,0]
[null,"Other - please detail",null,null,null,null,null,null,null,null,null,null,null,null,null,null,null,null,0]
[null,null,null,{"$f":"SUM(D73:D75)","v":0},{"$f":"SUM(E73:E75)","v":0},{"$f":"SUM(F73:F75)","v":0},null,{"$f":"SUM(H73:H75)","v":0},{"$f":"SUM(I73:I75)","v":0},{"$f":"SUM(J73:J75)","v":0},null,{"$f":"SUM(L73:L75)","v":0},{"$f":"SUM(M73:M75)","v":0},{"$f":"SUM(N73:N75)","v":0},null,{"$f":"SUM(P73:P75)","v":0},{"$f":"SUM(Q73:Q75)","v":0},{"$f":"SUM(R73:R75)","v":0},{"$f":"SUM(S73:S75)","v":0}]
[null,"TOTAL EXPENDITURE",null,{"$f":"D39+D49+D53+D62+D69+D72+D76","v":0},0,{"$f":"F39+F49+F53+F62+F69+F72+F76","v":0},null,0,0,0,null,0,0,0,null,0,0,0,0]
[]
[null,"Opening balance",null,{"$f":"'CASH FLOW YR 1'!R82","v":0},{"$f":"D82","v":0},{"$f":"E82","v":0},null,{"$f":"F82","v":0},{"$f":"H82","v":0},0,null,{"$f":"J82","v":0},0,0,null,{"$f":"N82","v":0},0,0,{"$f":"R82","v":0}]
[null,"Total Income",null,{"$f":"D31","v":0},{"$f":"E31","v":0},{"$f":"F31","v":0},null,{"$f":"H31","v":0},{"$f":"I31","v":0},{"$f":"J31","v":0},null,{"$f":"L31","v":0},{"$f":"M31","v":0},{"$f":"N31","v":0},null,{"$f":"P31","v":0},{"$f":"Q31","v":0},{"$f":"R31","v":0},{"$f":"SUM(D80:R80)","v":0}]
[null,"Total Expenditure",null,{"$f":"D77","v":0},{"$f":"E77","v":0},{"$f":"F77","v":0},null,0,0,0,null,0,0,0,null,0,0,0,{"$f":"SUM(D81:R81)","v":0}]
[null,"Closing balance",null,{"$f":"D79+D80-D81","v":0},0,{"$f":"F79+F80-F81","v":0},null,0,0,0,null,0,0,0,null,0,0,{"$f":"R79+R80-R81","v":0}]
[]
[null,"This figure should be your closing balance from Yr 1",null,null,null,null,null,{"$f":"IF(Q84=\"LOSS\",\"WARNING\",\"GOOD NEWS\")","v":"GOOD NEWS"},null,"The cashflow forecast is currently indicating that you will make a",null,null,null,null,null,null,{"$f":"IF(S84<0,\"LOSS\",IF(S84>0,\"PROFIT\",IF(S84=0,\"BREAK EVEN\")))","v":"BREAK EVEN"},{"$f":"IF(S81>S80,\"LOSS\",IF(S81<S80,\"PROFIT\",IF(S81=S80,\"BREAK EVEN\")))","v":"BREAK EVEN"},{"$f":"S80-S81","v":0}]
[]
[]
[]
[]
[]
[]
[]
[]
[]
[]
[null,"Year 1"]
[null,"Year 2"]
[null,"Year 3"]
[null,"Year 4"]
[null,"Year 5"]
[null,"Year 6"]
[null,"Year 7"]
[null,"Year 8"]
[null,"Year 9"]
[null,"Year 10"]

{"sheet":"CASH FLOW YR 3","index":8,"n_rows":104,"n_cols":19,"rows_kept":104,"cut":false,"hidden":false,"merged":[[83,16,83,17],[2,3,2,5],[2,7,2,8],[2,13,4,18],[4,1,6,1],[4,3,4,10],[6,3,6,17],[8,1,9,1],[12,7,12,15],[83,1,83,5],[83,7,83,8],[83,9,83,15]]}
[]
[]
[null,null,null,"Date completed",null,null,null,null,null,null,null,null,null,"Cashflow Forecast"]
[]
[null,{"$f":"IF(B9=0, \"Please select the year using the drop down menu below\", \"\")","v":""},null,{"$f":"'Staff Salaries'!B3","v":"Setting Name: "}]
[]
[null,null,null,"Only complete the blue boxes below which apply to your setting.  When completing please try to be as accurate as possible about the timings of your income and expenditure. "]
[]
[null,"Year 3",null,"Month 1","Month 2","Month 3",null,"Month 4","Month 5","Month 6",null,"Month 7","Month 8","Month 9",null,"Month 10","Month 11","Month 12","Totals"]
[]
[]
[]
[null,"Income",null,null,null,null,null,"PLEASE ENTER FIGURES IN BLUE BOXES ONLY "]
[]
[null,"FEEE1W",null,null,null,null,null,null,null,null,null,null,null,null,null,null,null,null,{"$f":"SUM(D15:R15)","v":0}]
[null,"FEEE2",null,null,null,null,null,null,null,null,null,null,null,null,null,null,null,null,0]
[null,"FEEE2W",null,null,null,null,null,null,null,null,null,null,null,null,null,null,null,null,0]
[null,"FEEE 3 - 4",null,null,null,null,null,null,null,null,null,null,null,null,null,null,null,null,0]
[null,"*SENIF",null,null,null,null,null,null,null,null,null,null,null,null,null,null,null,null,0]
[null,"*EYPP",null,null,null,null,null,null,null,null,null,null,null,null,null,null,null,null,0]
[null,"*DAF",null,null,null,null,null,null,null,null,null,null,null,null,null,null,null,null,0]
[null,"Capital ",null,null,null,null,null,null,null,null,null,null,null,null,null,null,null,null,0]
[null,"Fees From parents",null,null,null,null,null,null,null,null,null,null,null,null,null,null,null,null,0]
[null,"Wraparound Fees",null,null,null,null,null,null,null,null,null,null,null,null,null,null,null,null,0]
[null,"Local Authority Grants",null,null,null,null,null,null,null,null,null,null,null,null,null,null,null,null,0]
[null,"Other - please detail",null,null,null,null,null,null,null,null,null,null,null,null,null,null,null,null,0]
[null,"Other - please detail",null,null,null,null,null,null,null,null,null,null,null,null,null,null,null,null,0]
[null,"Other - please detail",null,null,null,null,null,null,null,null,null,null,null,null,null,null,null,null,0]
[null,"Other - please detail",null,null,null,null,null,null,null,null,null,null,null,null,null,null,null,null,{"$f":"SUM(D29:R29)","v":0}]
[]
[null,"TOTAL INCOME ",null,{"$f":"SUM(D15:D29)","v":0},{"$f":"SUM(E15:E29)","v":0},{"$f":"SUM(F15:F29)","v":0},null,{"$f":"SUM(H15:H29)","v":0},{"$f":"SUM(I15:I29)","v":0},{"$f":"SUM(J15:J29)","v":0},null,{"$f":"SUM(L15:L29)","v":0},{"$f":"SUM(M15:M29)","v":0},{"$f":"SUM(N15:N29)","v":0},null,{"$f":"SUM(P15:P29)","v":0},{"$f":"SUM(Q15:Q29)","v":0},{"$f":"SUM(R15:R29)","v":0},{"$f":"SUM(S15:S29)","v":0}]
[]
[null,"Expenditure"]
[]
[null,"Wages & Salaries",null,{"$f":"'Staff Salaries'!C25","v":0},{"$f":"'Staff Salaries'!D25","v":0},{"$f":"'Staff Salaries'!E25","v":0},null,{"$f":"'Staff Salaries'!F25","v":0},{"$f":"'Staff Salaries'!G25","v":0},{"$f":"'Staff Salaries'!H25","v":0},null,{"$f":"'Staff Salaries'!I25","v":0},{"$f":"'Staff Salaries'!J25","v":0},{"$f":"'Staff Salaries'!K25","v":0},null,{"$f":"'Staff Salaries'!L25","v":0},{"$f":"'Staff Salaries'!M25","v":0},{"$f":"'Staff Salaries'!N25","v":0},{"$f":"SUM(D35:R35)","v":0}]
[null,"Holiday Cover @ 5%",null,{"$f":"D35/100*5","v":0},{"$f":"E35/100*5","v":0},0,null,0,0,0,null,0,0,0,null,0,0,0,0]
[null,"Staff  Training @ 1.5%",null,{"$f":"D35/100*1.5","v":0},{"$f":"E35/100*1.5","v":0},{"$f":"F35/100*1.5","v":0},null,{"$f":"H35/100*1.5","v":0},{"$f":"I35/100*1.5","v":0},{"$f":"J35/100*1.5","v":0},null,{"$f":"L35/100*1.5","v":0},{"$f":"M35/100*1.5","v":0},{"$f":"N35/100*1.5","v":0},null,{"$f":"P35/100*1.5","v":0},{"$f":"Q35/100*1.5","v":0},{"$f":"R35/100*1.5","v":0},0]
[null,"Other ",null,null,null,null,null,null,null,null,null,null,null,null,null,null,null,null,0]
[null,"Total Staff Costs",null,{"$f":"SUM(D35:D38)","v":0},{"$f":"SUM(E35:E38)","v":0},{"$f":"SUM(F35:F38)","v":0},null,{"$f":"SUM(H35:H38)","v":0},{"$f":"SUM(I35:I38)","v":0},{"$f":"SUM(J35:J38)","v":0},null,{"$f":"SUM(L35:L38)","v":0},{"$f":"SUM(M35:M38)","v":0},{"$f":"SUM(N35:N38)","v":0},null,{"$f":"SUM(P35:P38)","v":0},{"$f":"SUM(Q35:Q38)","v":0},{"$f":"SUM(R35:R38)","v":0},{"$f":"SUM(S35:S38)","v":0}]
[null,"Rent",null,null,null,null,null,null,null,null,null,null,null,null,null,null,null,null,{"$f":"SUM(D40:R40)","v":0}]
[null,"Maintenance",null,null,null,null,null,null,null,null,null,null,null,null,null,null,null,null,0]
[null,"Electricity",null,null,null,null,null,null,null,null,null,null,null,null,null,null,null,null,0]
[null,"Gas",null,null,null,null,null,null,null,null,null,null,null,null,null,null,null,null,0]
[null,"Business Rates",null,null,null,null,null,null,null,null,null,null,null,null,null,null,null,null,0]
[null,"Water",null,null,null,null,null,null,null,null,null,null,null,null,null,null,null,null,0]
[null,"Cleaning",null,null,null,null,null,null,null,null,null,null,null,null,null,null,null,null,0]
[null,"Other - please detail",null,null,null,null,null,null,null,null,null,null,null,null,null,null,null,null,0]
[null,"Other - please detail",null,null,null,null,null,null,null,null,null,null,null,null,null,null,null,null,0]
[null,"Total Premises",null,{"$f":"SUM(D40:D48)","v":0},{"$f":"SUM(E40:E48)","v":0},{"$f":"SUM(F40:F48)","v":0},null,{"$f":"SUM(H40:H48)","v":0},{"$f":"SUM(I40:I48)","v":0},{"$f":"SUM(J40:J48)","v":0},null,{"$f":"SUM(L40:L48)","v":0},{"$f":"SUM(M40:M48)","v":0},{"$f":"SUM(N40:N48)","v":0},null,{"$f":"SUM(P40:P48)","v":0},{"$f":"SUM(Q40:Q48)","v":0},{"$f":"SUM(R40:R48)","v":0},{"$f":"SUM(S40:S48)","v":0}]
[null,"Building Insurance",null,null,null,null,null,null,null,null,null,null,null,null,null,null,null,null,{"$f":"SUM(D50:R50)","v":0}]
[null,"Contents Insurance",null,null,null,null,null,null,null,null,null,null,null,null,null,null,null,null,{"$f":"SUM(D51:R51)","v":0}]
[null,"Employment Insurance",null,null,null,null,null,null,null,null,null,null,null,null,null,null,null,null,{"$f":"SUM(D52:R52)","v":0}]
[null,"Total Insurance",null,{"$f":"SUM(D50:D52)","v":0},{"$f":"SUM(E50:E52)","v":0},0,null,0,0,0,null,0,0,0,null,0,0,0,{"$f":"SUM(S50:S52)","v":0}]
[]
[null,"Administration Costs",null,null,null,null,null,null,null,null,null,null,null,null,null,null,null,null,{"$f":"SUM(D55:R55)","v":0}]
[null,"Membership Fees",null,null,null,null,null,null,null,null,null,null,null,null,null,null,null,null,0]
[null,"Bank Charges",null,null,null,null,null,null,null,null,null,null,null,null,null,null,null,null,0]
[null,"Professional Fees",null,null,null,null,null,null,null,null,null,null,null,null,null,null,null,null,0]
[null,"Subscriptions",null,null,null,null,null,null,null,null,null,null,null,null,null,null,null,null,0]
[null,"Other - please detail",null,null,null,null,null,null,null,null,null,null,null,null,null,null,null,null,0]
[null,"Other - please detail",null,null,null,null,null,null,null,null,null,null,null,null,null,null,null,null,0]
[null,"Total Administration",null,{"$f":"SUM(D55:D61)","v":0},{"$f":"SUM(E55:E61)","v":0},{"$f":"SUM(F55:F61)","v":0},null,{"$f":"SUM(H55:H61)","v":0},{"$f":"SUM(I55:I61)","v":0},{"$f":"SUM(J55:J61)","v":0},null,{"$f":"SUM(L55:L61)","v":0},{"$f":"SUM(M55:M61)","v":0},{"$f":"SUM(N55:N61)","v":0},null,{"$f":"SUM(P55:P61)","v":0},{"$f":"SUM(Q55:Q61)","v":0},{"$f":"SUM(R55:R61)","v":0},{"$f":"SUM(S55:S61)","v":0}]
[null,"Consumables",null,null,null,null,null,null,null,null,null,null,null,null,null,null,null,null,{"$f":"SUM(D63:R63)","v":0}]
[null,"Visits & Trips out ",null,null,null,null,null,null,null,null,null,null,null,null,null,null,null,null,0]
[null,"Catering",null,null,null,null,null,null,null,null,null,null,null,null,null,null,null,null,0]
[null,"Misc / Sundries",null,null,null,null,null,null,null,null,null,null,null,null,null,null,null,null,0]
[null,"Repairs & renewals",null,null,null,null,null,null,null,null,null,null,null,null,null,null,null,null,0]
[null,"Other - please detail",null,null,null,null,null,null,null,null,null,null,null,null,null,null,null,null,0]
[null,"Total Activity & Material Costs",null,{"$f":"SUM(D63:D68)","v":0},{"$f":"SUM(E63:E68)","v":0},0,null,0,0,0,null,0,0,0,null,0,0,0,{"$f":"SUM(S63:S68)","v":0}]
[null,"Advertising / Promotions",null,null,null,null,null,null,null,null,null,null,null,null,null,null,null,null,{"$f":"SUM(D70:R70)","v":0}]
[null,"Market Research",null,null,null,null,null,null,null,null,null,null,null,null,null,null,null,null,{"$f":"SUM(D71:R71)","v":0}]
[null,"Total Advertising",null,{"$f":"SUM(D70:D71)","v":0},{"$f":"SUM(E70:E71)","v":0},0,null,0,0,0,null,0,0,0,null,0,0,0,{"$f":"SUM(S70:S71)","v":0}]
[null,"Capital Expenditure",null,null,null,null,null,null,null,null,null,null,null,null,null,null,null,null,{"$f":"SUM(D73:R73)","v":0}]
[null,"Other - please detail",null,null,null,null,null,null,null,null,null,null,null,null,null,null,null,null,0]
[null,"Other - please detail",null,null,null,null,null,null,null,null,null,null,null,null,null,null,null,null,0]
[null,null,null,{"$f":"SUM(D73:D75)","v":0},{"$f":"SUM(E73:E75)","v":0},{"$f":"SUM(F73:F75)","v":0},null,{"$f":"SUM(H73:H75)","v":0},{"$f":"SUM(I73:I75)","v":0},{"$f":"SUM(J73:J75)","v":0},null,{"$f":"SUM(L73:L75)","v":0},{"$f":"SUM(M73:M75)","v":0},{"$f":"SUM(N73:N75)","v":0},null,{"$f":"SUM(P73:P75)","v":0},{"$f":"SUM(Q73:Q75)","v":0},{"$f":"SUM(R73:R75)","v":0},{"$f":"SUM(S73:S75)","v":0}]
[null,"TOTAL EXPENDITURE",null,{"$f":"D39+D49+D53+D62+D69+D72+D76","v":0},0,0,0,0,0,0,0,0,0,0,0,0,0,0,0]
[]
[null,"Opening balance",null,{"$f":"'CASH FLOW YR 2'!R82","v":0},{"$f":"D82","v":0},{"$f":"E82","v":0},null,{"$f":"F82","v":0},0,0,null,{"$f":"J82","v":0},0,0,null,{"$f":"N82","v":0},0,0,{"$f":"R82","v":0}]
[null,"Total Income",null,{"$f":"D31","v":0},{"$f":"E31","v":0},{"$f":"F31","v":0},null,{"$f":"H31","v":0},{"$f":"I31","v":0},{"$f":"J31","v":0},null,{"$f":"L31","v":0},{"$f":"M31","v":0},{"$f":"N31","v":0},null,{"$f":"P31","v":0},{"$f":"Q31","v":0},{"$f":"R31","v":0},{"$f":"SUM(D80:R80)","v":0}]
[null,"Total Expenditure",null,{"$f":"D77","v":0},{"$f":"E77","v":0},0,null,0,0,0,null,0,0,0,null,0,0,0,{"$f":"SUM(D81:R81)","v":0}]
[null,"Closing balance",null,{"$f":"D79+D80-D81","v":0},0,0,null,0,0,0,null,0,0,0,null,0,0,{"$f":"R79+R80-R81","v":0}]
[]
[null,"This figure should be your closing balance from Yr 2",null,null,null,null,null,{"$f":"IF(Q84=\"LOSS\",\"WARNING\",\"GOOD NEWS\")","v":"GOOD NEWS"},null,"The cashflow forecast is currently indicating that you will make a",null,null,null,null,null,null,{"$f":"IF(S84<0,\"LOSS\",IF(S84>0,\"PROFIT\",IF(S84=0,\"BREAK EVEN\")))","v":"BREAK EVEN"},{"$f":"IF(S81>S80,\"LOSS\",IF(S81<S80,\"PROFIT\",IF(S81=S80,\"BREAK EVEN\")))","v":"BREAK EVEN"},{"$f":"S80-S81","v":0}]
[]
[]
[]
[]
[]
[]
[]
[]
[]
[]
[null,"Year 1"]
[null,"Year 2"]
[null,"Year 3"]
[null,"Year 4"]
[null,"Year 5"]
[null,"Year 6"]
[null,"Year 7"]
[null,"Year 8"]
[null,"Year 9"]
[null,"Year 10"]